Cogmind - Beta 17 @@@ ROGUE MODE // 2026.07.10 @ 21:30:56 Player: naththebg Result: Destroyed by Autobeam Turret with Autobeam Performance ------------- Evolutions (0) 0 Regions Visited (2) 400 Robots Destroyed (37) 185 Value Destroyed (993) 993 Prototype IDs (5) 100 Alien Tech Used (0) 0 Bonus (0) 0 TOTAL SCORE: 1678 Bonus ------- None Cogmind --------- Core Integrity 0/250 Matter 290/300 Energy 188/200 System Corruption 0% Temperature Cool (73) Movement Rolling (130) Ox2 Location -10/Subcaves Parts ------- > --- POWER (1) -------- Subdweller Power Source > --- PROPULSION (2) --- Light Treads Subdweller Monowheel > --- UTILITY (2) ------ Improved Heat Sink Large Storage Unit > --- WEAPON (2) ------- Subdweller Beam Cannon Subdweller Beam Cannon > --- INVENTORY (15) --- Subdweller Power Source Aluminum Leg Aluminum Leg Medium Storage Unit Subdweller Optics Makeshift Light Armor Plating Makeshift Laser Subdweller Beam Cannon Subdweller Beam Cannon Subdweller Beam Cannon Subdweller Machine Gun Subdweller Machine Gun Heavy Battle Rifle Subdweller Shrapnel Launcher Peak State ------------ > --- POWER ------------ Subdweller Power Source > --- PROPULSION ------- Light Treads Subdweller Monowheel > --- UTILITY ---------- Improved Heat Sink Large Storage Unit > --- WEAPON ----------- Subdweller Beam Cannon Subdweller Beam Cannon > --- INVENTORY -------- Subdweller Power Source Aluminum Leg Aluminum Leg Medium Storage Unit Subdweller Optics Makeshift Light Armor Plating Makeshift Laser Subdweller Beam Cannon Subdweller Beam Cannon Subdweller Beam Cannon Subdweller Machine Gun Subdweller Machine Gun Heavy Battle Rifle Subdweller Shrapnel Launcher [Rating: 16] Favorites ----------- Power Subdweller Power Source Engine Subdweller Power Source Propulsion Light Treads Treads Light Treads Leg Aluminum Leg Wheel Subdweller Monowheel Utility Improved Heat Sink Device Improved Heat Sink Storage Large Storage Unit Processor Visual Processing Unit Weapon Subdweller Beam Cannon Energy Gun Small Laser Energy Cannon Subdweller Beam Cannon Ballistic Gun Assault Rifle Launcher Grenade Launcher Build | -11 -10 -10 ------- Run | Yrd Mat Sub Slots Evolved . | . . . Power . | . . . Propulsion . | . . . Utility . | . . . Weapon . | . . . Parts Attached 29 | 6 10 13 Power 8 | 1 1 6 Engine 8 | 1 1 6 Core . | . . . Reactor . | . . . Propulsion 7 | 2 2 3 Treads 2 | . . 2 Leg 4 | 2 2 . Wheel 1 | . . 1 Hover . | . . . Flight . | . . . Utility 6 | 1 5 . Device 1 | . 1 . Storage 4 | 1 3 . Processor 1 | . 1 . Hackware . | . . . Protection . | . . . Artifact . | . . . Weapon 8 | 2 2 4 Energy Gun 2 | 1 1 . Energy Cannon 4 | . 1 3 Ballistic Gun 1 | 1 . . Ballistic Cannon . | . . . Launcher 1 | . . 1 Special Weapon . | . . . Impact Weapon . | . . . Slashing Weapon . | . . . Piercing Weapon . | . . . Special Melee Weapon . | . . . Unidentified Prototypes . | . . . Parts Lost 6 | . 2 4 Power 2 | . . 2 Propulsion 2 | . 1 1 Utility . | . . . Weapon 2 | . 1 1 Highest Loss Streak 1 | . 1 1 To Critical Strikes . | . . . Average Backups 12 | 4 8 13 Power 1 | . 1 1 Propulsion 3 | 2 3 3 Utility 2 | . 1 2 Weapon 5 | 1 2 6 Tool/Special . | . . . Unused Backups 20 | . 3 17 Power 1 | . . 1 Propulsion 3 | . 2 1 Utility 4 | . 1 3 Weapon 12 | . . 12 Tool/Special . | . . . Average Slot Usage (%) 99 | . 97 99 Engine 13 | . 14 13 Treads 21 | . . 27 Leg 5 | . 28 . Device 13 | . 9 14 Storage 14 | . 14 14 Energy Gun 2 | . 14 . Energy Cannon 24 | . 9 27 Peak Build Rating 16 | 6 10 16 Average Rating 12 | 3 8 13 On Entrance 5 | . 6 10 Avg Prop Armor Cover (%) 14 | . . 14 Naked Turns . | . . . Heaviest Build 42 | 12 18 42 Greatest Support 40 | 20 20 40 Greatest Overweight (x) 2 | . . 2 Average Overweight (x) . | . . . Largest Inventory Capacity 15 | 8 15 15 Average Capacity 13 | 6 8 14 Most Carried 15 | 7 10 15 Average Carried 12 | 4 8 13 Final Capacity 15 | 8 10 15 Final Carried 14 | 6 9 14 Class Distribution -------------------- 90% | Mutant 9% | Scavenger-Mutant Dominant Class ---------------- Mutant | -10/Materials Mutant | -10/Subcaves Resources | -11 -10 -10 ----------- Run | Yrd Mat Sub Matter Collected 615 | 201 234 180 Remotely . | . . . Salvage Created 1354 | . 585 769 Parts 78 | . 35 43 Haulers Intercepted 2 | . 2 . Recyclers Shooed . | . . . Parts Field Recycled . | . . . Retrieved Matter . | . . . Parts Self-Destructed 9 | . . 9 Prevented . | . . . Parts Restored . | . . . Kills | -11 -10 -10 ------- Run | Yrd Mat Sub Combat Hostiles Destroyed 32 | . 16 16 Guns 11 | . 11 . Cannons 18 | . 5 13 AOE 1 | . . 1 Classes Destroyed 6 | . 4 2 Hauler 2 | . 2 . Turret 1 | . . 1 Watcher 2 | . 2 . Swarmer 11 | . 10 1 Grunt 6 | . 6 . Subdweller 15 | . . 15 Best Kill Streak 5 | . 5 2 Combat Bots Only 5 | . 5 2 Max Kills in Single Turn 2 | . 2 1 Gunslinging . | . . . Exploded 1 | . . 1 Melee . | . . . Uniques/NPCs Destroyed . | . . . Combat | -11 -10 -10 -------- Run | Yrd Mat Sub Hostile Shots Fired 161 | . 78 83 Missed 48 | . 17 31 Hits 113 | . 61 52 Projectile 113 | . 61 52 Critical Strikes 2 | . . 2 Damage Taken 1394 | . 559 835 Core 256 | . 99 157 Absorbed by Shields . | . . . Core Remaining (%) 100 | 100 . . Volleys Fired 132 | . 51 81 Largest 2 | . 2 2 Hottest 160 | . 100 160 Shots Fired 226 | . 100 126 Gun 78 | . 74 4 Cannon 144 | . 26 118 Launcher 4 | . . 4 Special . | . . . Kinetic 25 | . 25 . Thermal 176 | . 54 122 Explosive 4 | . . 4 Electromagnetic 21 | . 21 . Robot Hit Streak 27 | . 8 27 Robot Miss Streak 5 | . 5 2 Penetration Max . | . . . Secondary Targets . | . . . Shots Hit Robots 127 | . 57 70 Core Hits 47 | . 25 22 Critical Kills 2 | . . 2 Critical Parts Destroyed . | . . . Critical Strikes 3 | . 1 2 Meltdown 2 | . . 2 Corrupt 1 | . 1 . Melee Attacks . | . . . Impact . | . . . Slashing . | . . . Piercing . | . . . Sneak Attacks . | . . . Combat Hostiles . | . . . Follow-up Attacks . | . . . Damage Inflicted 2824 | . 862 1962 Guns 545 | . 524 21 Cannons 1957 | . 278 1679 Explosions 322 | . 60 262 Melee . | . . . Ramming . | . . . Kinetic 203 | . 203 . Thermal 2156 | . 456 1700 Explosive 262 | . . 262 Electromagnetic 203 | . 203 . Impact . | . . . Slashing . | . . . Piercing . | . . . Highest Corruption . | . . . Average Corruption . | . . . Corruption Purged . | . . . Corruption Blocked . | . . . Overload Shots . | . . . Overflow Damage 6 | . . 6 Projectiles . | . . . Explosions 6 | . . 6 Melee . | . . . Knockbacks . | . . . Impact . | . . . Kinetic . | . . . Secondary . | . . . Self-Inflicted Damage 110 | . 5 105 Shots 5 | . 1 4 Rammed . | . . . Targets Rammed . | . . . Kicked . | . . . Crushed . | . . . Highest Temperature 56 | . 30 56 Average Temperature 17 | . 14 25 Received Heat Transfer 339 | . 93 246 Siege Activations . | . . . Martial Activations . | . . . Shielding Activations . | . . . Robots Disrupted . | . . . Combat Hostiles . | . . . Robots Corrupted . | . . . Combat Hostiles . | . . . Parts Fried . | . . . Impact Corruptions . | . . . Robots Melted 2 | . . 2 Combat Hostiles 2 | . . 2 Parts Melted 7 | . 3 4 Heat Transferred 3459 | . 967 2492 Parts Sabotaged . | . . . Parts Stolen . | . . . Parts Stripped . | . . . Power Chain Reactions 1 | . 1 . Alert | -11 -10 -10 ------- Run | Yrd Mat Sub Maximum Alert Level . | . . . Low Security (%) 100 | 100 100 . Level 1 . | . . . Level 2 . | . . . Level 3 . | . . . Level 4 . | . . . Level 5 . | . . . High Security . | . . . Max Security . | . . . Peak Influence 152 | . 152 . Initial . | . . . Average 88 | . 95 . Influence Increases 525 | . 440 85 Destroy 0b10 Robot/C 360 | . 320 40 Destroy 0b10 Robot/NC 20 | . 20 . Destroy Leader 58 | . 58 . Successful Hack 22 | . 22 . Destroy Structure 5 | . 5 . Lose Combat Pursuer 60 | . 15 45 Influence Decreases 459 | . 336 123 Entered New Map 51 | . . 51 Time Decay 368 | . 316 52 Lost Part 40 | . 20 20 Squads Dispatched 2 | . 2 . Investigation 1 | . 1 . Extermination . | . . . Reinforcement 1 | . 1 . Assault . | . . . Garrison . | . . . Intercept . | . . . Searches Triggered . | . . . Construction Impeded . | . . . Haulers Reinforced . | . . . Active Scanning Responses . | . . . Cargo Convoy Interrupts . | . . . Stealth | -11 -10 -10 --------- Run | Yrd Mat Sub Distress Signals 1 | . 1 . Communications Jammed . | . . . Distress Signals . | . . . Times Spotted 43 | . 23 20 Peak Tracking Total 5 | . 5 3 Tactical Retreats 3 | . 1 2 Traps | -11 -10 -10 ------- Run | Yrd Mat Sub Traps Triggered . | . . . Indirectly . | . . . Trap Hack Attempts . | . . . Triggered . | . . . Disarmed . | . . . Reprogrammed . | . . . Reused . | . . . Traps Extracted . | . . . Installed . | . . . Triggered . | . . . Machines | -11 -10 -10 ---------- Run | Yrd Mat Sub Machines Disabled 1 | . . 1 Max in Single Turn 1 | . . 1 Machines Repaired . | . . . Machines Dismantled . | . . . Machines Sabotaged . | . . . Overloaded Fab Kills . | . . . Hacking | -11 -10 -10 --------- Run | Yrd Mat Sub Machines Accessed 4 | . 4 . Terminals 4 | . 4 . Fabricators . | . . . Repair Stations . | . . . Recycling Units . | . . . Scanalyzers . | . . . Garrison Access . | . . . Total Hacks 11 | . 11 . Successful 7 | . 7 . Failed 4 | . 4 . Catastrophic . | . . . Database Lockouts . | . . . Manual 6 | . 6 . Terminals 11 | . 11 . Fabricators . | . . . Repair Stations . | . . . Recycling Units . | . . . Scanalyzers . | . . . Garrison Access . | . . . Terminal Hacks 5 | . 5 . Prototype ID Bank 3 | . 3 . Alert Level 1 | . 1 . Locate Traps 1 | . 1 . Fabricator Hacks . | . . . Repair Station Hacks . | . . . Recycling Unit Hacks . | . . . Scanalyzer . | . . . Garrison Access Hacks . | . . . Unauthorized Hacks 2 | . 2 . Terminals 2 | . 2 . Botnet 2 | . 2 . Fabricators . | . . . Repair Stations . | . . . Recycling Units . | . . . Scanalyzers . | . . . Garrison Access . | . . . Data Cores Recovered . | . . . Used . | . . . Hacking Detections 4 | . 4 . Full Trace Events . | . . . Feedback Events . | . . . Feedback Blocked . | . . . Robot Schematics Acquired . | . . . Robots Built . | . . . Authchips . | . . . Time . | . . . Total Robot Build Rating . | . . . Part Schematics Acquired . | . . . Parts Built . | . . . Authchips . | . . . Time . | . . . Total Part Build Rating . | . . . Part Studies Acquired . | . . . Parts Repaired . | . . . Time . | . . . Parts Recycled . | . . . Recycled Matter . | . . . Retrieved Matter . | . . . Retrieved Components . | . . . Parts Scanalyzed . | . . . Part Schematics Acquired . | . . . Parts Damaged . | . . . Bothacking | -11 -10 -10 ------------ Run | Yrd Mat Sub Used RIF Installer . | . . . Robots Hacked . | . . . Non-combat . | . . . Combat . | . . . Robot Hacks Applied . | . . . Relay Couplers Released . | . . . Fabnet Peak Effective % . | . . . Robots Rewired . | . . . Allies Hacked . | . . . Hacks Repelled . | . . . Allies | -11 -10 -10 -------- Run | Yrd Mat Sub Total Allies . | . . . Largest Group . | . . . Highest-Rated Group . | . . . Highest-Rated Ally . | . . . Total Orders . | . . . Ally Attacks . | . . . Total Damage . | . . . Kills . | . . . Allies Corrupted . | . . . Allies Melted 1 | . . 1 Intel | -11 -10 -10 ------- Run | Yrd Mat Sub Active Infowar (turns) 133 | . 133 . Optics 133 | . 133 . Robot Analysis Total . | . . . Derelict Logs Recovered 3 | . . 3 Drone Launches . | . . . Drone Recoveries . | . . . Exploration | -11 -10 -10 ------------- Run | Yrd Mat Sub Turns Passed 4022 | 64 777 3181 Spaces Moved 1841 | 46 466 1329 Core 9 | 9 . . Treads 1300 | . . 1300 Legs 530 | 37 466 27 Wheels 2 | . . 2 Hover . | . . . Flight . | . . . Fastest Speed 50 | 50 120 120 Average Speed 190 | 106 120 217 Slowest Speed 240 | 120 120 240 Overloaded Moves . | . . . Propulsion Burnouts . | . . . Robots Hopped . | . . . Potential Cave-ins . | . . . Cave-ins Triggered . | . . . Exploration Rate (%) 48 | 4 64 76 Regions Visited 2 Branch Regions 1 Pre-discovered Areas 1 | . . 1 Known Exits Taken . | . . . Unknown Exits Taken 2 | 1 1 . Scrap Searched 8 | . . 8 Spaces Dug 4 | . . 4 Terrain Destroyed 31 | . 3 28 Melee . | . . . Projectile 13 | . . 13 AOE 18 | . 3 15 Terrain Rammed . | . . . Walls Destroyed . | . . . Machines Disabled . | . . . Actions | -11 -10 -10 --------- Run | Yrd Mat Sub Total 2139 | 58 586 1495 Wait 76 | . 42 34 Move 1839 | 45 465 1329 Hop . | . . . Pick Up 35 | 7 8 20 Fast Attach 7 | 5 2 . Attach 8 | 1 3 4 Detach . | . . . Swap 18 | . 6 12 Drop 22 | . 9 13 Fire 132 | . 51 81 Melee . | . . . Ram . | . . . Kick . | . . . Crush . | . . . Escape Stasis . | . . . Rewire 2 | . . 2 Trap . | . . . Miscellaneous . | . . . Route ------- -11/Scrapyard -10/Materials (discovered 4 exits: [*Mat] / [*Min x2] / [*Sub]) -10/Subcaves (discovered 3 exits: *Mat x2 / [*Rec]) History --------- Turn | Location | Event 9 | -11/Scrapyard | Discovered new exit (range 15) 65 | -11/Scrapyard | Entered Materials 65 | -10/Materials | Discovered new exit (range 8) 317 | -10/Materials | Discovered new exit (range 10) 335 | -10/Materials | Build established: Mutant 482 | -10/Materials | Discovered new exit (range 16) 565 | -10/Materials | Derelicts attacked the area 832 | -10/Materials | Discovered new exit (range 6) 842 | -10/Materials | Entered Subcaves 845 | -10/Subcaves | Identified exit to Materials 854 | -10/Subcaves | Learned location of Zion (-7) 854 | -10/Subcaves | Met a Zionite searching for "candidates" 871 | -10/Subcaves | A swath of the cavern ceiling suddenly collapsed 915 | -10/Subcaves | Core integrity fell below 50% 1282 | -10/Subcaves | Discovered exit to Materials (range 9) 1287 | -10/Subcaves | Ambushed by Subdwellers from Twisted Machinery 1377 | -10/Subcaves | Shifting Twisted Machinery released Battle Rifle 1409 | -10/Subcaves | Shifting Twisted Machinery released Sub. Power Source 2831 | -10/Subcaves | Shifting Twisted Machinery released Shrapnel Trap 2835 | -10/Subcaves | Shifting Twisted Machinery released Mak. Shrapnel Gun 2981 | -10/Subcaves | Shifting Twisted Machinery released Riot Gun 2991 | -10/Subcaves | Shifting Twisted Machinery released Battle Cannon 3214 | -10/Subcaves | Core integrity fell below 20% 4011 | -10/Subcaves | Discovered new exit (range 16) 4021 | -10/Subcaves | Ambushed by Subdweller buried in earth 4023 | -10/Subcaves | Destroyed by Autobeam Turret with Autobeam Last Messages --------------- 03245_ Found 56 Matter. 03252_ Dropped Sub. Laser. 03253_ Acquired Sub. Beam Cannon. 03260_ Sub. Power Source shoots sparks and powers down. 03270_ Dropped Broken Sub. Power Source. 03302_ 43-C6S(u) tweaks Twisted Machinery. 03341_ 63-GQ8(u) deconstructs Twisted Machinery. 03368_ 43-C6S(u) builds Twisted Machinery. 03515_ Acquired 10 matter. 03575_ Sub. Power Source shoots sparks and powers down. 03737_ Acquired 10 matter. 03742_ Dropped Broken Sub. Power Source. 03742_ Acquired Sub. Power Source. 03854_ Machine disabled. 03857_ S-10 Pest destroyed. 03862_ Flight Unit fries itself beyond repair. 04004_ Lgt. Treads destroyed. 04006_ Autobeam Turret destroyed. 04011_ EXIT=FOUND 04022_ 0Z-FN3(R): "ARGHSUB!" Map ----- +----------------------------------------------------+ | ?????????????????????????##???# ### ## | | ??????????????????????????????# #?## | | ??????????????????????????????## #?# | | ???????????????????????????????# ### | | ???????????????????????????????# ######?# ## | | ???????????????????????????????###??????# ###?? | | ????????????????????????????????????????# ##???? | | ????????????????????????????#???????????## #????? | | ????????????????????????????? ??????????# #????? | | ???????????????????????????? ? ???????### #????? | | ????????????????????????????? #????## #####? | | ##????????????????????????????# ??## ## | | #???????????????? ?? ?????????# ## | | ##???????????????# #?????????# % | | #???????????????? ####??????# | | #???????????????? ##?????###### | | | #????????????????? ##?????????# | | ##????????????????? ??????????# | | #????????#####?????? % #??????????# | | #????????#"" ?????# % #??????????# ## | | ##???????#" ??### #?????######& ### | | #???????#" % ###;# #??????# ##?# | | ##??????#"" #???????# #?? | | "#??????< #???????#### #?? | | ##???????""t ##?????????# ## ##?? | | ##?????????????#R;% @##????????# ###??? | | " ####??????????# ; #????????# ##???? | | "" " #??????????### ##?????#### #?????## | | " ""#???????????## ##??????# # ##????????? | | ### ""#???????????# ####??????## #????????? | | ??## "##########?## ##????????## ##????????? | | ???# #"# ## ### ###?????### % ## #####??????? | | ???#" ##" ["" ###??## !### #??????? | | ####" ## ###"&" "#### ### #??????? | | "" ####"" ## #"# ## #???????? | | ###""" #?# """## "" % % % ##???????? | | ??#"" # ####?# """##"" " " ##????????? | | ??## "###????### ""###"""""""## ##?????????? | | #?## #####????#" "####"##""### #??????????? | | ###" ###### ####### #?# #?##???????? | | "" ## # #"" ""##???###?# ## #???????? | | ## "" """"#???????# #???????? | | ######## " """""#???????## ## #??? | | #??????# # """""""#????????### #??? | | ##??????##### "### ###??????????# ###### ##??? | | ????????????####??###????????????###?????#####???? | | ?????????????????????????????????????????????????? | | ?????????????????????????????????????????????????? | | ?????????????????????????????????????????????????? | | ?????????????????????????????????????????????????? | +----------------------------------------------------+ Best States ------------- Heat Dissipation 39 Energy Generation 15 Energy Capacity 200 Matter Stores 300 Matter Capacity 300 Sight Range 18 Terrain Scan Density 10 Evasion (%) 55 Recoil Reduction 2 Item Schematics ----------------- None Robot Schematics ------------------ None Fabricated ------------ Nothing Repaired ---------- Nothing Studied --------- None Alien Tech Used ----------------- None Achievements -------------- None Challenges ------------ Scavenger Game ------ Seed ColdVariableChainsword Manual? 0 Play Time 00:21:05 Cumulative 488.2 hours Start 2026.07.10 @ 21:12:11 End 2026.07.10 @ 21:30:56 Sessions 1 Manual Loads 0 Difficulty Rogue Special Mode None Game No. 246 Rogue 246 Adventurer 0 Explorer 0 Win Type - Total 14 Types 9/0/2/0/0/0/0/1/0/2 Lore% 85 Gallery% 80 Achievement% 68 Wizard Run 0 Options --------- Layout 0 ASCII 0 Keyboard 0 Movement Mouse Keybinds 0 Fullscreen 1 Font 18/SmallcapsGlow Map View 76x50 Zoom Use 0% Tactical HUD 1 Map Filters NONE Filters NONE Steam 1 RUN: 3cd30f5d-2322-4d6c-856c-bcf8e18c0248